[Event "Early-Titled-Tuesday-Blitz-September-26-2023"]
[Site "Chess.com"]
[Date "2023.09.26"]
[Round "8"]
[White "Raskolnikov6"]
[Black "Kielinkei"]
[Result "0-1"]
[WhiteElo "2332"]
[BlackElo "2485"]
[TimeControl "180+1"]
[EndTime "9:28:38 PDT"]
[Termination "Kielinkei won on time"]

1. c4 {[%clk 0:02:59.7]} 1... e5 {[%clk 0:02:57.8]} 2. g3 {[%clk 0:02:59]} 2...
d6 {[%clk 0:02:57.9]} 3. Bg2 {[%clk 0:02:58.6]} 3... f5 {[%clk 0:02:58.3]} 4.
Nc3 {[%clk 0:02:58.7]} 4... Nf6 {[%clk 0:02:58.6]} 5. e3 {[%clk 0:02:59.1]} 5...
Be7 {[%clk 0:02:58.6]} 6. Nge2 {[%clk 0:02:58.8]} 6... O-O {[%clk 0:02:58.8]} 7.
d4 {[%clk 0:02:59.5]} 7... e4 {[%clk 0:02:59.1]} 8. h4 {[%clk 0:02:57.2]} 8...
c5 {[%clk 0:02:58]} 9. Nf4 {[%clk 0:02:56.6]} 9... Nc6 {[%clk 0:02:52.5]} 10. b3
{[%clk 0:02:56.9]} 10... Ng4 {[%clk 0:02:27]} 11. Bb2 {[%clk 0:02:53.1]} 11...
cxd4 {[%clk 0:02:26.2]} 12. exd4 {[%clk 0:02:51.2]} 12... e3 {[%clk 0:02:26.1]}
13. Bd5+ {[%clk 0:02:25.5]} 13... Kh8 {[%clk 0:02:25.7]} 14. fxe3 {[%clk
0:01:41.6]} 14... Nb4 {[%clk 0:02:12.4]} 15. Qd2 {[%clk 0:01:33]} 15... Nxe3
{[%clk 0:01:55.8]} 16. Bf3 {[%clk 0:00:48.5]} 16... Nec2+ {[%clk 0:01:51.2]} 17.
Kf2 {[%clk 0:00:47.5]} 17... Nxa1 {[%clk 0:01:48.8]} 18. Bxa1 {[%clk 0:00:47.3]}
18... Bf6 {[%clk 0:01:44.8]} 19. a3 {[%clk 0:00:47]} 19... Nc6 {[%clk
0:01:44.3]} 20. Nce2 {[%clk 0:00:46]} 20... Re8 {[%clk 0:01:39.9]} 21. Bd5
{[%clk 0:00:45.1]} 21... Ne7 {[%clk 0:01:33.2]} 22. Bf3 {[%clk 0:00:41.4]} 22...
Qb6 {[%clk 0:01:21.8]} 23. b4 {[%clk 0:00:39.4]} 23... a5 {[%clk 0:01:17.1]} 24.
c5 {[%clk 0:00:39.3]} 24... Qc7 {[%clk 0:01:14.2]} 25. Nc3 {[%clk 0:00:23.1]}
25... dxc5 {[%clk 0:01:07.7]} 26. bxc5 {[%clk 0:00:17]} 26... Bd7 {[%clk
0:01:05.1]} 27. Ncd5 {[%clk 0:00:16.1]} 27... Nxd5 {[%clk 0:01:03.2]} 28. Nxd5
{[%clk 0:00:16.9]} 28... Qd8 {[%clk 0:00:59.7]} 29. Nxf6 {[%clk 0:00:11.4]}
29... Qxf6 {[%clk 0:01:00.6]} 30. d5 {[%clk 0:00:11.2]} 30... Qf7 {[%clk
0:00:59.5]} 31. c6 {[%clk 0:00:08.7]} 31... bxc6 {[%clk 0:00:58.2]} 32. dxc6
{[%clk 0:00:08.9]} 32... Be6 {[%clk 0:00:57.2]} 33. Qc3 {[%clk 0:00:08.8]} 33...
Rab8 {[%clk 0:00:49.7]} 34. Re1 {[%clk 0:00:07.4]} 34... Rb3 {[%clk 0:00:48]}
35. Qe5 {[%clk 0:00:04.3]} 35... Rxf3+ {[%clk 0:00:44.5]} 36. Kxf3 {[%clk
0:00:01.6]} 36... Bd5+ {[%clk 0:00:44.7]} 0-1

[Event "Early-Titled-Tuesday-Blitz-September-26-2023"]
[Site "Chess.com"]
[Date "2023.09.26"]
[Round "8"]
[White "carokannlover213"]
[Black "attack2mateU"]
[Result "1-0"]
[WhiteElo "2713"]
[BlackElo "2736"]
[TimeControl "180+1"]
[EndTime "9:28:40 PDT"]
[Termination "carokannlover213 won by resignation"]

1. e4 {[%clk 0:03:00.9]} 1... c5 {[%clk 0:02:59.7]} 2. Nf3 {[%clk 0:03:01.3]}
2... d6 {[%clk 0:03:00.1]} 3. d4 {[%clk 0:03:00.2]} 3... cxd4 {[%clk 0:03:01]}
4. Nxd4 {[%clk 0:03:01]} 4... Nf6 {[%clk 0:03:01.4]} 5. Nc3 {[%clk 0:03:00.8]}
5... a6 {[%clk 0:03:02.1]} 6. Be2 {[%clk 0:02:57.4]} 6... e5 {[%clk 0:03:02.5]}
7. Nb3 {[%clk 0:02:57.8]} 7... Be7 {[%clk 0:03:03]} 8. Be3 {[%clk 0:02:58.2]}
8... Be6 {[%clk 0:03:02.9]} 9. Nd5 {[%clk 0:02:57.9]} 9... Nbd7 {[%clk
0:03:01.9]} 10. Qd3 {[%clk 0:02:58.4]} 10... Bxd5 {[%clk 0:02:58]} 11. exd5
{[%clk 0:02:59.3]} 11... Rc8 {[%clk 0:02:57.5]} 12. c4 {[%clk 0:02:56.1]} 12...
O-O {[%clk 0:02:56.7]} 13. g4 {[%clk 0:02:55.7]} 13... e4 {[%clk 0:02:45.3]} 14.
Qd4 {[%clk 0:02:48.3]} 14... Ne5 {[%clk 0:02:45.4]} 15. g5 {[%clk 0:02:48.4]}
15... Nfg4 {[%clk 0:02:18.4]} 16. Bxg4 {[%clk 0:02:43.9]} 16... Nxg4 {[%clk
0:02:19.3]} 17. h4 {[%clk 0:02:44.4]} 17... Ne5 {[%clk 0:01:39.1]} 18. Nd2
{[%clk 0:02:32]} 18... Rxc4 {[%clk 0:01:37.8]} 19. Qa7 {[%clk 0:02:19.4]} 19...
Qc8 {[%clk 0:01:20]} 20. Nxc4 {[%clk 0:02:13.9]} 20... Qxc4 {[%clk 0:01:20.9]}
21. f4 {[%clk 0:01:50.2]} 21... exf3 {[%clk 0:01:09.8]} 22. Rh2 {[%clk
0:01:49.1]} 22... Re8 {[%clk 0:00:48.1]} 23. Qd4 {[%clk 0:01:43.4]} 23... f2+
{[%clk 0:00:24.9]} 24. Rxf2 {[%clk 0:01:41]} 24... Nd3+ {[%clk 0:00:25.1]} 25.
Kd2 {[%clk 0:01:38.6]} 25... Qxd4 {[%clk 0:00:24.6]} 26. Bxd4 {[%clk 0:01:39.5]}
26... Nxf2 {[%clk 0:00:25.1]} 27. Bxf2 {[%clk 0:01:40.4]} 27... Rc8 {[%clk
0:00:22.7]} 28. Re1 {[%clk 0:01:37.7]} 28... Kf8 {[%clk 0:00:22.9]} 29. Bd4
{[%clk 0:01:36.2]} 29... f6 {[%clk 0:00:20.3]} 30. gxf6 {[%clk 0:01:34.6]} 30...
gxf6 {[%clk 0:00:19.9]} 31. Kd3 {[%clk 0:01:33.1]} 31... Kf7 {[%clk 0:00:20]}
32. h5 {[%clk 0:01:30.4]} 32... Rg8 {[%clk 0:00:15.6]} 33. Rc1 {[%clk
0:01:30.5]} 33... Rg5 {[%clk 0:00:16.2]} 34. Rc7 {[%clk 0:01:29]} 34... Rxd5
{[%clk 0:00:16.3]} 35. Rxb7 {[%clk 0:01:28.2]} 35... Rxh5 {[%clk 0:00:16.2]} 36.
a4 {[%clk 0:01:22.3]} 36... Ke6 {[%clk 0:00:15]} 37. b4 {[%clk 0:01:20.3]} 37...
Rh3+ {[%clk 0:00:09.3]} 38. Kc2 {[%clk 0:01:18.6]} 38... h5 {[%clk 0:00:05.9]}
39. a5 {[%clk 0:01:12.9]} 39... h4 {[%clk 0:00:05.3]} 40. b5 {[%clk 0:01:12.9]}
40... axb5 {[%clk 0:00:06.2]} 41. a6 {[%clk 0:01:13]} 41... Ra3 {[%clk
0:00:06.9]} 42. a7 {[%clk 0:01:13.1]} 42... h3 {[%clk 0:00:06.9]} 43. Rb8 {[%clk
0:01:12.6]} 43... h2 {[%clk 0:00:05.1]} 44. Rh8 {[%clk 0:01:12.3]} 44... Kd5
{[%clk 0:00:05.5]} 45. Bf2 {[%clk 0:01:03.1]} 45... Kc4 {[%clk 0:00:05.4]} 46.
Rh4+ {[%clk 0:01:02.6]} 46... Kd5 {[%clk 0:00:04.9]} 47. Rxh2 {[%clk 0:01:02.6]}
47... Kc6 {[%clk 0:00:05.4]} 48. Rh8 {[%clk 0:01:02.2]} 48... d5 {[%clk
0:00:04.9]} 1-0

[Event "Early-Titled-Tuesday-Blitz-September-26-2023"]
[Site "Chess.com"]
[Date "2023.09.26"]
[Round "8"]
[White "wqws"]
[Black "HajiyevKanan"]
[Result "1-0"]
[WhiteElo "2664"]
[BlackElo "2487"]
[TimeControl "180+1"]
[EndTime "9:28:46 PDT"]
[Termination "wqws won by checkmate"]

1. e3 {[%clk 0:02:58.8]} 1... c5 {[%clk 0:02:50.5]} 2. Nf3 {[%clk 0:02:58.8]}
2... d5 {[%clk 0:02:50.1]} 3. b3 {[%clk 0:02:53.8]} 3... Nc6 {[%clk 0:02:50.4]}
4. Bb2 {[%clk 0:02:54.2]} 4... Nf6 {[%clk 0:02:50]} 5. Bb5 {[%clk 0:02:53.9]}
5... Bd7 {[%clk 0:02:49.8]} 6. O-O {[%clk 0:02:53.9]} 6... e6 {[%clk 0:02:50.4]}
7. d4 {[%clk 0:02:53.6]} 7... cxd4 {[%clk 0:02:50.4]} 8. exd4 {[%clk 0:02:53.4]}
8... Bd6 {[%clk 0:02:50.8]} 9. a3 {[%clk 0:02:52]} 9... O-O {[%clk 0:02:50.9]}
10. Bd3 {[%clk 0:02:51.7]} 10... Ne7 {[%clk 0:02:50.6]} 11. c4 {[%clk
0:02:50.7]} 11... Ng6 {[%clk 0:02:50.4]} 12. Re1 {[%clk 0:02:46.7]} 12... b6
{[%clk 0:02:49.8]} 13. Nbd2 {[%clk 0:02:43.5]} 13... Qc7 {[%clk 0:02:50]} 14.
Rc1 {[%clk 0:02:42.6]} 14... Qb7 {[%clk 0:02:50.6]} 15. c5 {[%clk 0:02:41.6]}
15... Bf4 {[%clk 0:02:47.9]} 16. Rc2 {[%clk 0:02:30.4]} 16... Rac8 {[%clk
0:02:37.7]} 17. b4 {[%clk 0:02:30.1]} 17... a5 {[%clk 0:02:26.9]} 18. Qe2 {[%clk
0:02:27.6]} 18... Bxd2 {[%clk 0:02:17.1]} 19. Qxd2 {[%clk 0:02:24.6]} 19... Ba4
{[%clk 0:02:07.8]} 20. Rcc1 {[%clk 0:02:24.5]} 20... Ne4 {[%clk 0:01:56.6]} 21.
Qe2 {[%clk 0:02:19.3]} 21... Nf4 {[%clk 0:01:56]} 22. Qf1 {[%clk 0:02:19.1]}
22... Nxd3 {[%clk 0:01:56.2]} 23. Qxd3 {[%clk 0:02:20]} 23... bxc5 {[%clk
0:01:42.6]} 24. dxc5 {[%clk 0:02:19]} 24... axb4 {[%clk 0:01:41.1]} 25. Qd4
{[%clk 0:02:17.7]} 25... f6 {[%clk 0:01:33.3]} 26. Qxb4 {[%clk 0:02:05.9]} 26...
Qc6 {[%clk 0:01:25.8]} 27. Nd4 {[%clk 0:02:03.5]} 27... Qe8 {[%clk 0:01:26.4]}
28. c6 {[%clk 0:01:46.3]} 28... Bxc6 {[%clk 0:01:19.8]} 29. f3 {[%clk
0:01:46.3]} 29... Ng5 {[%clk 0:01:13.9]} 30. h4 {[%clk 0:01:44.6]} 30... Nh3+
{[%clk 0:00:57]} 31. gxh3 {[%clk 0:01:43.4]} 31... Bd7 {[%clk 0:00:54.5]} 32.
Rxc8 {[%clk 0:01:37.3]} 32... Qg6+ {[%clk 0:00:54.7]} 33. Kh1 {[%clk 0:01:29.4]}
33... Rxc8 {[%clk 0:00:55.3]} 34. Rg1 {[%clk 0:01:17.9]} 34... Qf7 {[%clk
0:00:39.5]} 35. Bc1 {[%clk 0:00:56.6]} 35... e5 {[%clk 0:00:38.7]} 36. Bh6
{[%clk 0:00:55.6]} 36... g6 {[%clk 0:00:36.6]} 37. Ne2 {[%clk 0:00:53.9]} 37...
Bxh3 {[%clk 0:00:33]} 38. Qd6 {[%clk 0:00:49.6]} 38... d4 {[%clk 0:00:28.4]} 39.
Rc1 {[%clk 0:00:45.1]} 39... Rxc1+ {[%clk 0:00:18.5]} 40. Nxc1 {[%clk 0:00:46]}
40... Bd7 {[%clk 0:00:15.6]} 41. Nd3 {[%clk 0:00:41.7]} 41... Qe6 {[%clk
0:00:13.3]} 42. Qf8# {[%clk 0:00:41.7]} 1-0

[Event "Early-Titled-Tuesday-Blitz-September-26-2023"]
[Site "Chess.com"]
[Date "2023.09.26"]
[Round "8"]
[White "Iskusnyh"]
[Black "Aradhya2000"]
[Result "1-0"]
[WhiteElo "2605"]
[BlackElo "2691"]
[TimeControl "180+1"]
[EndTime "9:28:47 PDT"]
[Termination "Iskusnyh won by resignation"]

1. d4 {[%clk 0:03:00.9]} 1... d5 {[%clk 0:00:02]} 2. c4 {[%clk 0:02:58.7]} 2...
c6 {[%clk 0:00:01.9]} 3. Nf3 {[%clk 0:02:58.5]} 3... Nf6 {[%clk 0:00:02.5]} 4.
e3 {[%clk 0:02:58.5]} 4... Bf5 {[%clk 0:00:02.2]} 5. Nc3 {[%clk 0:02:57.7]} 5...
e6 {[%clk 0:00:02.2]} 6. Nh4 {[%clk 0:02:57.5]} 6... Bg6 {[%clk 0:00:02.7]} 7.
Nxg6 {[%clk 0:02:52.4]} 7... hxg6 {[%clk 0:00:03.6]} 8. Bd2 {[%clk 0:02:52.5]}
8... Nbd7 {[%clk 0:00:04.2]} 9. Qc2 {[%clk 0:02:52.3]} 9... Qc7 {[%clk
0:00:04.4]} 10. h3 {[%clk 0:02:49.3]} 10... Be7 {[%clk 0:00:05.1]} 11. O-O-O
{[%clk 0:02:48.6]} 11... a5 {[%clk 0:00:04.8]} 12. Kb1 {[%clk 0:02:47.9]} 12...
dxc4 {[%clk 0:00:05]} 13. Bxc4 {[%clk 0:02:47.3]} 13... b5 {[%clk 0:00:05.8]}
14. Bd3 {[%clk 0:02:44.7]} 14... b4 {[%clk 0:00:06.4]} 15. Ne4 {[%clk
0:02:44.3]} 15... c5 {[%clk 0:00:06]} 16. dxc5 {[%clk 0:02:40.5]} 16... Nxc5
{[%clk 0:00:05.2]} 17. Bb5+ {[%clk 0:02:37.8]} 17... Kf8 {[%clk 0:00:04.8]} 18.
Nxc5 {[%clk 0:02:36.2]} 18... Qxc5 {[%clk 0:00:05]} 19. Qxc5 {[%clk 0:02:35.7]}
19... Bxc5 {[%clk 0:00:05.9]} 20. Rc1 {[%clk 0:02:35.5]} 20... Ne4 {[%clk
0:00:06.1]} 21. Be1 {[%clk 0:02:24.1]} 21... Rc8 {[%clk 0:00:06.2]} 22. f3
{[%clk 0:02:16]} 22... Nd6 {[%clk 0:00:05.8]} 23. Ba6 {[%clk 0:02:14.2]} 23...
Rc6 {[%clk 0:00:05.3]} 24. Be2 {[%clk 0:02:09.9]} 24... Ke7 {[%clk 0:00:05.2]}
25. e4 {[%clk 0:02:05.6]} 25... Rhc8 {[%clk 0:00:05.9]} 26. Bd2 {[%clk
0:01:57.7]} 26... Bd4 {[%clk 0:00:06.1]} 27. Rxc6 {[%clk 0:01:56.8]} 27... Rxc6
{[%clk 0:00:07]} 28. Rc1 {[%clk 0:01:56.8]} 28... Rxc1+ {[%clk 0:00:07.2]} 29.
Kxc1 {[%clk 0:01:56.7]} 29... Kd7 {[%clk 0:00:07.7]} 30. Kc2 {[%clk 0:01:56.3]}
30... Kc6 {[%clk 0:00:08]} 31. a3 {[%clk 0:01:53.3]} 31... bxa3 {[%clk 0:00:07]}
32. bxa3 {[%clk 0:01:53.4]} 32... Kb6 {[%clk 0:00:07.7]} 33. h4 {[%clk
0:01:50.5]} 33... Bc5 {[%clk 0:00:07.7]} 34. g4 {[%clk 0:01:48.4]} 34... Bxa3
{[%clk 0:00:07.6]} 35. h5 {[%clk 0:01:46.7]} 35... gxh5 {[%clk 0:00:07.2]} 36.
gxh5 {[%clk 0:01:47]} 36... Bb4 {[%clk 0:00:07.5]} 37. Be3+ {[%clk 0:01:42.9]}
37... Bc5 {[%clk 0:00:07.5]} 38. Bf4 {[%clk 0:01:42.4]} 38... Ne8 {[%clk
0:00:07.4]} 39. Be5 {[%clk 0:01:41.3]} 39... Bd6 {[%clk 0:00:07.1]} 40. Bd4+
{[%clk 0:01:33.5]} 40... Bc5 {[%clk 0:00:07.3]} 41. Bc3 {[%clk 0:01:31]} 41...
f6 {[%clk 0:00:07.4]} 42. Bc4 {[%clk 0:01:28.5]} 42... e5 {[%clk 0:00:07.5]} 43.
Kb3 {[%clk 0:01:25.9]} 43... Nd6 {[%clk 0:00:07.4]} 44. Be6 {[%clk 0:01:24.4]}
44... Bb4 {[%clk 0:00:07.7]} 45. Bxb4 {[%clk 0:01:20.5]} 45... axb4 {[%clk
0:00:08.6]} 46. Kxb4 {[%clk 0:01:21.4]} 46... Nb7 {[%clk 0:00:08.9]} 47. Kc4
{[%clk 0:01:19.4]} 47... Kc7 {[%clk 0:00:08.1]} 48. Kd5 {[%clk 0:01:19]} 48...
Nd6 {[%clk 0:00:07.9]} 49. Bg4 {[%clk 0:01:18.5]} 49... Nb5 {[%clk 0:00:05.4]}
50. Ke6 {[%clk 0:01:18.1]} 50... Nd4+ {[%clk 0:00:05.4]} 51. Kf7 {[%clk
0:01:17.9]} 51... Kd6 {[%clk 0:00:05.7]} 52. Kxg7 {[%clk 0:01:17.3]} 52... Ke7
{[%clk 0:00:06.4]} 53. h6 {[%clk 0:01:17.4]} 53... Ne6+ {[%clk 0:00:06]} 54.
Bxe6 {[%clk 0:01:17.2]} 54... Kxe6 {[%clk 0:00:06.9]} 1-0

[Event "Early-Titled-Tuesday-Blitz-September-26-2023"]
[Site "Chess.com"]
[Date "2023.09.26"]
[Round "8"]
[White "ARMQUEEN"]
[Black "viktorskliarov"]
[Result "0-1"]
[WhiteElo "2447"]
[BlackElo "2651"]
[TimeControl "180+1"]
[EndTime "9:28:48 PDT"]
[Termination "viktorskliarov won by resignation"]

1. e4 {[%clk 0:03:00.1]} 1... c5 {[%clk 0:02:59.9]} 2. Nc3 {[%clk 0:02:59.5]}
2... Nc6 {[%clk 0:02:59.6]} 3. Bb5 {[%clk 0:02:54.6]} 3... Nd4 {[%clk
0:02:59.3]} 4. Bc4 {[%clk 0:02:49.8]} 4... g6 {[%clk 0:02:58.9]} 5. Nf3 {[%clk
0:02:49.1]} 5... Bg7 {[%clk 0:02:58.6]} 6. Nxd4 {[%clk 0:02:49.3]} 6... cxd4
{[%clk 0:02:59]} 7. Qf3 {[%clk 0:02:44.2]} 7... Nh6 {[%clk 0:02:59.3]} 8. d3
{[%clk 0:02:42.9]} 8... O-O {[%clk 0:02:57.7]} 9. Ne2 {[%clk 0:02:42.1]} 9...
Ng4 {[%clk 0:02:57.7]} 10. Bb3 {[%clk 0:02:41]} 10... d6 {[%clk 0:02:53.5]} 11.
Qg3 {[%clk 0:02:40.1]} 11... Nf6 {[%clk 0:02:39]} 12. f4 {[%clk 0:02:31.3]}
12... a5 {[%clk 0:02:17]} 13. a4 {[%clk 0:02:30.3]} 13... Bd7 {[%clk 0:02:15.5]}
14. Qf2 {[%clk 0:02:27.2]} 14... Ng4 {[%clk 0:02:06.4]} 15. Qf3 {[%clk
0:02:25.3]} 15... Rc8 {[%clk 0:01:56.4]} 16. O-O {[%clk 0:02:22.3]} 16... Qb6
{[%clk 0:01:51.1]} 17. f5 {[%clk 0:01:58.5]} 17... gxf5 {[%clk 0:01:06.1]} 18.
exf5 {[%clk 0:01:56.8]} 18... Ne3 {[%clk 0:01:06.1]} 19. Bxe3 {[%clk 0:01:51.5]}
19... dxe3 {[%clk 0:01:05.8]} 20. Qg3 {[%clk 0:01:51.1]} 20... Kh8 {[%clk
0:01:01.8]} 21. Rf3 {[%clk 0:01:42.4]} 21... Bc6 {[%clk 0:00:52.5]} 22. Rxe3
{[%clk 0:01:40.5]} 22... Bxb2 {[%clk 0:00:51.8]} 23. Rf1 {[%clk 0:01:39.4]}
23... Rg8 {[%clk 0:00:49.9]} 24. Rf3 {[%clk 0:01:14.2]} 24... Rxg3 {[%clk
0:00:39.1]} 25. Rxg3 {[%clk 0:01:14.1]} 25... Rg8 {[%clk 0:00:32.5]} 26. Kf1
{[%clk 0:01:11.5]} 26... Rxg3 {[%clk 0:00:31.1]} 27. Rxg3 {[%clk 0:01:12.4]}
27... Be5 {[%clk 0:00:27.4]} 28. Rg4 {[%clk 0:01:08]} 28... d5 {[%clk
0:00:27.6]} 29. d4 {[%clk 0:00:59.1]} 29... Bf6 {[%clk 0:00:27.6]} 30. Nc3
{[%clk 0:00:55.3]} 30... e6 {[%clk 0:00:24.2]} 31. fxe6 {[%clk 0:00:54.4]} 31...
fxe6 {[%clk 0:00:25.1]} 32. Ne2 {[%clk 0:00:54.6]} 32... h5 {[%clk 0:00:19.3]}
33. Rg3 {[%clk 0:00:54]} 33... Qc7 {[%clk 0:00:14.9]} 34. Rh3 {[%clk 0:00:52.6]}
34... Kg7 {[%clk 0:00:13.3]} 35. Rxh5 {[%clk 0:00:51.7]} 35... Be8 {[%clk
0:00:13.7]} 36. Rh3 {[%clk 0:00:51.6]} 36... Bg6 {[%clk 0:00:13.9]} 37. Rg3
{[%clk 0:00:51.7]} 37... Kf7 {[%clk 0:00:14.2]} 38. Rc3 {[%clk 0:00:40.3]} 38...
Qxh2 {[%clk 0:00:12.8]} 39. Ng1 {[%clk 0:00:38.8]} 39... Be4 {[%clk 0:00:11.6]}
0-1

[Event "Early-Titled-Tuesday-Blitz-September-26-2023"]
[Site "Chess.com"]
[Date "2023.09.26"]
[Round "8"]
[White "Barmen_EV"]
[Black "Lion-Al-Messi"]
[Result "1-0"]
[WhiteElo "2460"]
[BlackElo "2629"]
[TimeControl "180+1"]
[EndTime "9:28:49 PDT"]
[Termination "Barmen_EV won by checkmate"]

1. e4 {[%clk 0:03:00.9]} 1... c5 {[%clk 0:02:59.8]} 2. c3 {[%clk 0:03:00.3]}
2... Nf6 {[%clk 0:02:59.5]} 3. e5 {[%clk 0:03:00.4]} 3... Nd5 {[%clk 0:02:59.6]}
4. d4 {[%clk 0:03:01.3]} 4... cxd4 {[%clk 0:02:58.9]} 5. Nf3 {[%clk 0:03:01.7]}
5... Nc6 {[%clk 0:02:57.7]} 6. Bc4 {[%clk 0:03:02.2]} 6... e6 {[%clk 0:02:56.1]}
7. cxd4 {[%clk 0:03:00.9]} 7... d6 {[%clk 0:02:56]} 8. exd6 {[%clk 0:03:00.7]}
8... Bxd6 {[%clk 0:02:55.7]} 9. O-O {[%clk 0:03:01.2]} 9... O-O {[%clk
0:02:55.6]} 10. Nc3 {[%clk 0:03:01.9]} 10... Nb6 {[%clk 0:02:54.4]} 11. Bd3
{[%clk 0:03:01.8]} 11... h6 {[%clk 0:02:54.3]} 12. a3 {[%clk 0:03:01.5]} 12...
Ne7 {[%clk 0:02:50.6]} 13. Bc2 {[%clk 0:02:53.5]} 13... Bd7 {[%clk 0:02:49.7]}
14. Qd3 {[%clk 0:02:50.1]} 14... Ng6 {[%clk 0:02:48.7]} 15. h4 {[%clk
0:02:38.1]} 15... f5 {[%clk 0:02:42.7]} 16. h5 {[%clk 0:02:30]} 16... Nh4 {[%clk
0:02:38.1]} 17. Re1 {[%clk 0:02:20.4]} 17... Bc6 {[%clk 0:02:34.3]} 18. d5
{[%clk 0:01:55.8]} 18... Nxd5 {[%clk 0:02:34]} 19. Nd4 {[%clk 0:01:52.4]} 19...
Nxc3 {[%clk 0:01:08.9]} 20. Nxe6 {[%clk 0:01:37.4]} 20... Qf6 {[%clk 0:00:35.1]}
21. Qxd6 {[%clk 0:01:35.1]} 21... Nxg2 {[%clk 0:00:24.3]} 22. Bb3 {[%clk
0:00:40.8]} 22... Kh8 {[%clk 0:00:16.8]} 23. Bd2 {[%clk 0:00:21.2]} 23... Nxe1
{[%clk 0:00:15.9]} 24. Bxc3 {[%clk 0:00:20.7]} 24... Nf3+ {[%clk 0:00:15.6]} 25.
Kf1 {[%clk 0:00:13]} 25... Qh4 {[%clk 0:00:05.3]} 26. Bxg7+ {[%clk 0:00:13.1]}
26... Kh7 {[%clk 0:00:05.1]} 27. Nxf8+ {[%clk 0:00:12.8]} 27... Rxf8 {[%clk
0:00:04.2]} 28. Qxh6# {[%clk 0:00:12.3]} 1-0

[Event "Early-Titled-Tuesday-Blitz-September-26-2023"]
[Site "Chess.com"]
[Date "2023.09.26"]
[Round "8"]
[White "azikom"]
[Black "jup1978"]
[Result "1-0"]
[WhiteElo "2643"]
[BlackElo "2434"]
[TimeControl "180+1"]
[EndTime "9:28:50 PDT"]
[Termination "azikom won by resignation"]

1. c4 {[%clk 0:03:00.1]} 1... c6 {[%clk 0:02:54.7]} 2. e4 {[%clk 0:02:59.5]}
2... d5 {[%clk 0:02:53.2]} 3. exd5 {[%clk 0:03:00.1]} 3... cxd5 {[%clk
0:02:54.1]} 4. cxd5 {[%clk 0:03:00.8]} 4... Nf6 {[%clk 0:02:54.5]} 5. Qa4+
{[%clk 0:03:00.4]} 5... Nbd7 {[%clk 0:02:53.3]} 6. Nc3 {[%clk 0:02:59.4]} 6...
g6 {[%clk 0:02:51.6]} 7. Bc4 {[%clk 0:02:56.4]} 7... a6 {[%clk 0:02:47.9]} 8.
Nf3 {[%clk 0:02:40.5]} 8... Bg7 {[%clk 0:02:47.5]} 9. d3 {[%clk 0:02:38.6]} 9...
O-O {[%clk 0:02:46.9]} 10. Be3 {[%clk 0:02:32.2]} 10... Rb8 {[%clk 0:02:44]} 11.
Bb3 {[%clk 0:02:28.8]} 11... b5 {[%clk 0:02:41.2]} 12. Qh4 {[%clk 0:02:28.1]}
12... Nb6 {[%clk 0:02:30]} 13. d6 {[%clk 0:02:24.6]} 13... exd6 {[%clk
0:02:19.8]} 14. O-O {[%clk 0:02:22.9]} 14... Nfd7 {[%clk 0:02:10.4]} 15. Bg5
{[%clk 0:02:21.4]} 15... Bf6 {[%clk 0:02:03.7]} 16. Ne4 {[%clk 0:02:17.4]} 16...
Bxg5 {[%clk 0:01:50.2]} 17. Nfxg5 {[%clk 0:02:14.1]} 17... h5 {[%clk 0:01:49.3]}
18. Nxd6 {[%clk 0:01:44]} 18... Nc5 {[%clk 0:01:39.2]} 19. Ndxf7 {[%clk
0:01:18.4]} 19... Qf6 {[%clk 0:01:20.4]} 20. Qg3 {[%clk 0:00:46.5]} 20... Nxb3
{[%clk 0:01:10.9]} 21. axb3 {[%clk 0:00:46.2]} 21... Bf5 {[%clk 0:01:04.5]} 22.
Nd6 {[%clk 0:00:43.9]} 22... Rbd8 {[%clk 0:00:55.6]} 23. Nxf5 {[%clk 0:00:43.1]}
23... Qxf5 {[%clk 0:00:56.5]} 24. Rxa6 {[%clk 0:00:41.6]} 24... Rxd3 {[%clk
0:00:44.7]} 25. Qc7 {[%clk 0:00:40.6]} 25... Rd7 {[%clk 0:00:45]} 26. Qxb6
{[%clk 0:00:39.5]} 26... Qxg5 {[%clk 0:00:44.6]} 27. Qxg6+ {[%clk 0:00:40]}
27... Qxg6 {[%clk 0:00:42.2]} 28. Rxg6+ {[%clk 0:00:40.9]} 28... Kh7 {[%clk
0:00:41.3]} 29. Rg5 {[%clk 0:00:39.6]} 29... Kh6 {[%clk 0:00:39.4]} 30. Rxb5
{[%clk 0:00:38.6]} 30... Rd2 {[%clk 0:00:40.1]} 31. h4 {[%clk 0:00:38.4]} 31...
Rxb2 {[%clk 0:00:39.6]} 32. Rb6+ {[%clk 0:00:35.4]} 32... Kh7 {[%clk 0:00:39.4]}
33. g3 {[%clk 0:00:35.8]} 33... Re8 {[%clk 0:00:38.7]} 34. b4 {[%clk 0:00:35.7]}
34... Ree2 {[%clk 0:00:37.7]} 35. b5 {[%clk 0:00:35.7]} 35... Rb3 {[%clk
0:00:37.5]} 36. Rb7+ {[%clk 0:00:33.9]} 36... Kg6 {[%clk 0:00:35.7]} 37. Rc1
{[%clk 0:00:32.8]} 37... Rbb2 {[%clk 0:00:29.5]} 38. Rc6+ {[%clk 0:00:32]} 38...
Kf5 {[%clk 0:00:29.7]} 39. Rf7+ {[%clk 0:00:31.7]} 39... Ke4 {[%clk 0:00:22.7]}
40. Re6+ {[%clk 0:00:31.3]} 1-0

[Event "Early-Titled-Tuesday-Blitz-September-26-2023"]
[Site "Chess.com"]
[Date "2023.09.26"]
[Round "8"]
[White "moro182"]
[Black "TigrVShlyape"]
[Result "1-0"]
[WhiteElo "2853"]
[BlackElo "2949"]
[TimeControl "180+1"]
[EndTime "9:28:51 PDT"]
[Termination "moro182 won on time"]

1. c4 {[%clk 0:03:00.9]} 1... e5 {[%clk 0:02:58.9]} 2. g3 {[%clk 0:03:00.9]}
2... Nc6 {[%clk 0:02:59.2]} 3. Bg2 {[%clk 0:03:01]} 3... Bc5 {[%clk 0:02:58.9]}
4. Nc3 {[%clk 0:03:00.9]} 4... a6 {[%clk 0:02:58.7]} 5. e3 {[%clk 0:03:01.2]}
5... Ba7 {[%clk 0:02:58.1]} 6. Nge2 {[%clk 0:03:01.1]} 6... Nge7 {[%clk
0:02:58.2]} 7. O-O {[%clk 0:03:00.1]} 7... O-O {[%clk 0:02:58.4]} 8. b3 {[%clk
0:02:59.7]} 8... d6 {[%clk 0:02:57.1]} 9. Bb2 {[%clk 0:02:59.6]} 9... Bf5 {[%clk
0:02:57.1]} 10. d3 {[%clk 0:02:57.3]} 10... Qd7 {[%clk 0:02:56.9]} 11. Nd5
{[%clk 0:02:55.2]} 11... Nxd5 {[%clk 0:02:55.3]} 12. cxd5 {[%clk 0:02:56.1]}
12... Ne7 {[%clk 0:02:55.4]} 13. e4 {[%clk 0:02:44.6]} 13... Bh3 {[%clk
0:02:49.4]} 14. d4 {[%clk 0:02:44.7]} 14... Bxg2 {[%clk 0:02:48.7]} 15. Kxg2
{[%clk 0:02:45.6]} 15... f5 {[%clk 0:02:44.3]} 16. dxe5 {[%clk 0:02:37.8]} 16...
fxe4 {[%clk 0:02:35.6]} 17. e6 {[%clk 0:02:36.3]} 17... Qb5 {[%clk 0:02:30.7]}
18. Nc3 {[%clk 0:02:35.2]} 18... Qc5 {[%clk 0:02:25.7]} 19. Qe2 {[%clk
0:01:39.5]} 19... Nxd5 {[%clk 0:01:59.9]} 20. Nxe4 {[%clk 0:01:37.6]} 20... Qc6
{[%clk 0:01:31.4]} 21. Qg4 {[%clk 0:01:20.3]} 21... Nf4+ {[%clk 0:01:13.3]} 22.
Kg1 {[%clk 0:01:10.4]} 22... Nh3+ {[%clk 0:01:08.2]} 23. Kh1 {[%clk 0:01:04.6]}
23... g6 {[%clk 0:00:36.8]} 24. f3 {[%clk 0:00:52.6]} 24... Qc2 {[%clk 0:00:36]}
25. e7 {[%clk 0:00:48.1]} 25... Rf7 {[%clk 0:00:27.8]} 26. Nf6+ {[%clk 0:00:46]}
26... Kh8 {[%clk 0:00:16.6]} 27. Qe6 {[%clk 0:00:37.4]} 27... Ng5 {[%clk
0:00:06.3]} 28. e8=Q+ {[%clk 0:00:32.3]} 28... Rxe8 {[%clk 0:00:05.6]} 29. Qxe8+
{[%clk 0:00:33.2]} 29... Kg7 {[%clk 0:00:06]} 30. Rab1 {[%clk 0:00:26.7]} 30...
Nxf3 {[%clk 0:00:02.4]} 31. Ng4+ {[%clk 0:00:22.5]} 1-0